bitfinex/quotes_BTCUSD_20241215
["timestamp","ask_amount","ask_price","bid_price","bid_amount"]
[1734251533683,0.13093863,101720.0,101710.0,0.21993355]
[1734251533901,0.32755663,101720.0,101710.0,0.21993355]
[1734251534106,0.3266181,101720.0,101710.0,0.21993355]
[1734251534731,0.1300001,101720.0,101710.0,0.21993355]
[1734251534939,0.13093863,101720.0,101710.0,0.21993355]
[1734251535152,0.32755663,101720.0,101710.0,0.21993355]
[1734251535372,0.3266181,101720.0,101710.0,0.21993355]
[1734251537038,0.1300001,101720.0,101710.0,0.21993355]
[1734251537247,0.13093863,101720.0,101710.0,0.21993355]
[1734251537663,0.32755663,101720.0,101710.0,0.21993355]
[1734251537887,0.3266181,101720.0,101710.0,0.21993355]
[1734251538097,0.1300001,101720.0,101710.0,0.21993355]
[1734251538303,0.13093863,101720.0,101710.0,0.21993355]
[1734251542219,0.0809001,101720.0,101710.0,0.21993355]
[1734251542447,0.0809001,101720.0,101710.0,0.41657055]
[1734251555444,0.0809001,101720.0,101710.0,0.21993355]
[1734251555955,0.08183863,101720.0,101710.0,0.21993355]
[1734251556390,0.27845663,101720.0,101710.0,0.21993355]
[1734251556600,0.2775181,101720.0,101710.0,0.21993355]
[1734251557227,0.0809001,101720.0,101710.0,0.21993355]
[1734251558425,0.0809001,101720.0,101710.0,0.19160583]
[1734251558773,0.2775181,101720.0,101710.0,0.19593999]
[1734251559597,0.0809001,101720.0,101710.0,0.19593999]
[1734251566496,0.0809001,101720.0,101710.0,0.39257699]
[1734251568292,0.16905425,101720.0,101710.0,0.39257699]
[1734251568489,0.16905425,101720.0,101710.0,0.39274919]
[1734251569227,0.16905425,101720.0,101710.0,0.39491416]
[1734251572637,0.16999278,101720.0,101710.0,0.19827716]
[1734251572853,0.36661078,101720.0,101710.0,0.15667133]
[1734251573066,0.36567225,101720.0,101710.0,0.15667133]
[1734251574512,0.36567225,101720.0,101710.0,0.15450548]
[1734251576181,0.36567225,101720.0,101710.0,0.22030293]
[1734251579450,0.49790348,101720.0,101710.0,0.22030293]
[1734251580530,0.30128548,101720.0,101710.0,0.41693993]
[1734251580753,0.22038548,101720.0,101710.0,0.41693993]
[1734251580937,0.08815425,101720.0,101710.0,0.41693993]
[1734251581162,0.22104378,101720.0,101710.0,0.41693993]
[1734251581361,0.22104378,101720.0,101710.0,0.22030293]
[1734251584502,0.22104378,101720.0,101710.0,0.15450548]
[1734251584711,0.22104378,101720.0,101710.0,0.22030293]
[1734251585120,0.22104378,101720.0,101710.0,0.19197521]
[1734251586178,0.22104378,101720.0,101710.0,0.38861221]
[1734251589543,0.22104378,101720.0,101710.0,0.48766624]
[1734251589765,0.08841757,101720.0,101710.0,0.91120046]
[1734251590185,1e-07,101720.0,101710.0,0.87600451]
[1734251590495,1e-07,101720.0,101710.0,0.84540301]
[1734251590699,1e-07,101720.0,101710.0,0.84757095]
[1734251591949,1e-07,101720.0,101710.0,0.62726272]
[1734251592157,1e-07,101720.0,101710.0,0.84749605]
[1734251593248,1e-07,101720.0,101710.0,0.9132935]
[1734251593514,1e-07,101720.0,101710.0,0.8003418]
[1734251594155,1e-07,101720.0,101710.0,0.80032938]
[1734251594369,1e-07,101720.0,101710.0,0.93245074]
[1734251595530,1e-07,101720.0,101710.0,0.80032938]
[1734251596358,1e-07,101720.0,101710.0,0.78760084]
[1734251597405,1e-07,101720.0,101710.0,0.9197222]
[1734251598666,1e-07,101720.0,101710.0,0.57563729]
[1734251598870,1e-07,101720.0,101710.0,0.95025124]
[1734251600721,1e-07,101720.0,101710.0,1.13016691]
[1734251600949,1e-07,101720.0,101710.0,1.14916682]
[1734251601215,1e-07,101720.0,101710.0,1.19319826]
[1734251601433,1e-07,101720.0,101710.0,1.38771686]
[1734251601648,1e-07,101720.0,101710.0,1.60736157]
[1734251601856,1e-07,101720.0,101710.0,1.98009469]
[1734251602493,1e-07,101720.0,101710.0,1.34345247]
[1734251603300,1e-07,101720.0,101710.0,1.123528]
[1734251603507,1e-07,101720.0,101710.0,1.29937048]
[1734251605521,1e-07,101720.0,101710.0,1.43120205]
[1734251607525,1e-07,101720.0,101710.0,0.90360375]
[1734251607726,1e-07,101720.0,101710.0,1.43082936]
[1734251609413,1e-07,101720.0,101710.0,1.45618984]
[1734251609621,1e-07,101720.0,101710.0,1.32442883]
[1734251610618,1e-07,101720.0,101710.0,1.456168]
[1734251614356,1e-07,101720.0,101710.0,1.43076213]
[1734251616515,1e-07,101720.0,101710.0,1.51853361]
[1734251620878,1e-07,101720.0,101710.0,0.90360375]
[1734251621162,1e-07,101720.0,101710.0,1.51793515]
[1734251621482,1e-07,101720.0,101710.0,1.43017352]
[1734251622429,1e-07,101720.0,101710.0,1.41532352]
[1734251626582,1e-07,101720.0,101710.0,1.28368108]
[1734251628081,1e-07,101720.0,101710.0,1.4153232]
[1734251631598,1e-07,101720.0,101710.0,1.28368108]
[1734251631991,1e-07,101720.0,101710.0,1.23368108]
[1734251632201,1e-07,101720.0,101710.0,1.28368108]
[1734251633894,1e-07,101720.0,101710.0,1.28387476]
[1734251634325,1e-07,101720.0,101710.0,1.10826542]
[1734251635550,1e-07,101720.0,101710.0,1.32167943]
[1734251635719,1e-07,101720.0,101710.0,1.37167943]
[1734251636439,1e-07,101720.0,101710.0,1.20057363]
[1734251636689,1e-07,101720.0,101710.0,1.17516776]
[1734251638041,1e-07,101720.0,101710.0,1.17529591]
[1734251638243,1e-07,101720.0,101710.0,1.17529589]
[1734251640592,1e-07,101720.0,101710.0,1.56443234]
[1734251641277,1e-07,101720.0,101710.0,1.56473316]
[1734251642524,1e-07,101720.0,101710.0,1.67133069]
[1734251642651,1e-07,101720.0,101710.0,1.30106955]
[1734251643687,1e-07,101720.0,101710.0,1.29335729]
[1734251644102,1e-07,101720.0,101710.0,1.55713282]
[1734251644538,1e-07,101720.0,101710.0,1.66361843]
[1734251644742,1e-07,101720.0,101710.0,1.29335729]
[1734251646814,1e-07,101720.0,101710.0,1.33265429]
[1734251647928,1e-07,101720.0,101710.0,1.27035729]
[1734251649599,1e-07,101720.0,101710.0,1.64134492]
[1734251649928,1e-07,101720.0,101710.0,1.27079999]
[1734251650756,1e-07,101720.0,101710.0,1.29379999]
[1734251654072,1e-07,101720.0,101710.0,1.27083824]
[1734251656181,1e-07,101720.0,101710.0,1.2900234]
[1734251660300,1e-07,101720.0,101710.0,1.27083824]
[1734251660553,1e-07,101720.0,101710.0,1.30356699]
[1734251665114,1e-07,101720.0,101710.0,1.27816112]
[1734251667171,1e-07,101720.0,101710.0,1.27083824]
[1734251667330,0.0001939,101730.0,101720.0,5.29739235]
[1734251667550,0.0001939,101730.0,101720.0,6.40819169]
[1734251667879,0.0001939,101730.0,101720.0,6.41462387]
[1734251672499,0.0001939,101730.0,101720.0,6.80442062]
[1734251672637,0.0001939,101730.0,101720.0,6.81412698]
[1734251674677,0.0001939,101730.0,101720.0,1.96212698]
[1734251675253,0.0001939,101730.0,101720.0,1.59155146]
[1734251675459,0.0001939,101730.0,101720.0,1.32757378]
[1734251675876,0.0001939,101730.0,101720.0,1.59161258]
[1734251678889,0.0757939,101730.0,101720.0,1.59161258]
[1734251679685,0.0757939,101730.0,101720.0,1.59183092]
[1734251679887,0.0729639,101730.0,101720.0,1.59183092]
[1734251680243,0.04680009,101740.0,101730.0,0.15]
[1734251680446,0.04685492,101740.0,101730.0,0.8954005]
[1734251680645,0.04685492,101740.0,101730.0,0.87833483]
[1734251683058,0.12245492,101740.0,101730.0,0.87833483]
[1734251684142,0.12245492,101740.0,101730.0,0.87835015]
[1734251685366,0.12245492,101740.0,101730.0,1.09843806]
[1734251685971,0.12245492,101740.0,101730.0,1.11798495]
[1734251692207,0.12245492,101740.0,101730.0,0.89789704]
[1734251692844,0.12245492,101740.0,101730.0,0.8978765]
[1734251694354,0.07565492,101740.0,101730.0,0.8978765]
[1734251694571,5.492e-05,101740.0,101730.0,1.02529695]
[1734251694999,5.492e-05,101740.0,101730.0,0.8279046]
[1734251695226,5.492e-05,101740.0,101730.0,1.02529695]
[1734251695349,5.492e-05,101740.0,101730.0,0.9594995]
[1734251697232,5.492e-05,101740.0,101730.0,0.95948034]
[1734251698107,5.492e-05,101740.0,101730.0,1.02527779]
[1734251698545,5.492e-05,101740.0,101730.0,0.9478316]
[1734251700057,0.07675492,101740.0,101730.0,0.9478316]
[1734251700894,0.07675492,101740.0,101730.0,0.94788631]
[1734251703177,0.07675492,101740.0,101730.0,0.89788631]
[1734251706634,0.07675492,101740.0,101730.0,0.76629141]
[1734251706876,0.07675492,101740.0,101730.0,0.89788631]
[1734251707133,0.07675492,101740.0,101730.0,0.89805851]
[1734251710633,0.07412392,101740.0,101730.0,0.89805851]
[1734251711104,0.07412392,101740.0,101730.0,0.83226106]
[1734251711348,0.07412392,101740.0,101730.0,0.89805851]
[1734251713383,0.07412392,101740.0,101730.0,0.76646361]
[1734251713567,0.07412392,101740.0,101730.0,1.1183247]
[1734251716693,0.1281722,101750.0,101730.0,1.1183247]
[1734251716924,0.1281722,101750.0,101740.0,0.67807496]
[1734251717128,0.1281722,101750.0,101740.0,0.90522807]
[1734251717309,0.1281722,101750.0,101740.0,0.91163132]
[1734251717739,0.1281722,101750.0,101740.0,0.911615]
[1734251719114,0.12480833,101750.0,101740.0,0.911615]
[1734251719332,0.0788,101750.0,101740.0,1.07646648]
[1734251719556,0.0788861,101760.0,101750.0,0.15]
[1734251719757,0.0788861,101760.0,101750.0,0.82800534]
[1734251719962,0.0788861,101760.0,101750.0,1.00421145]
[1734251720164,0.0788861,101760.0,101750.0,0.938414]
[1734251720381,0.0788861,101760.0,101750.0,0.76861113]
[1734251721985,0.1280861,101760.0,101750.0,0.76861113]
[1734251722330,0.1280861,101760.0,101750.0,0.76859688]
[1734251726528,0.1280861,101760.0,101750.0,0.76858525]
[1734251727009,0.1280861,101760.0,101750.0,0.7027878]
[1734251727211,0.1280861,101760.0,101750.0,0.76858525]
[1734251728719,0.1280861,101760.0,101750.0,0.94474239]
[1734251730662,0.0788861,101760.0,101750.0,0.94474239]
[1734251731135,0.0788861,101760.0,101750.0,0.94472018]
[1734251731896,0.0788861,101760.0,101750.0,0.94240607]
[1734251734225,0.0788861,101760.0,101750.0,1.18205296]
[1734251735217,0.0788861,101760.0,101750.0,1.11625551]
[1734251735507,0.0788861,101760.0,101750.0,1.18195747]
[1734251735741,0.0788861,101760.0,101750.0,0.96180749]
[1734251738710,8.61e-05,101760.0,101750.0,0.96180749]
[1734251739943,8.61e-05,101760.0,101750.0,0.96178247]
[1734251740454,8.61e-05,101760.0,101750.0,1.08908247]
[1734251741457,8.61e-05,101760.0,101750.0,0.96195467]
[1734251744695,8.61e-05,101760.0,101750.0,0.96179513]
[1734251748603,8.61e-05,101760.0,101750.0,0.96177997]
[1734251749474,8.61e-05,101760.0,101750.0,1.10507742]
[1734251749684,8.61e-05,101760.0,101750.0,1.23710084]
[1734251754321,8.61e-05,101760.0,101750.0,1.17130339]
[1734251756752,8.61e-05,101760.0,101750.0,1.10550594]
[1734251756949,8.61e-05,101760.0,101750.0,1.23710084]
[1734251757560,8.61e-05,101760.0,101750.0,1.17130339]
[1734251758470,8.61e-05,101760.0,101750.0,0.70900717]
[1734251758700,8.61e-05,101760.0,101750.0,1.23705106]
[1734251760798,8.61e-05,101760.0,101750.0,1.23708593]
[1734251764368,8.61e-05,101760.0,101750.0,1.23720385]
[1734251765232,8.61e-05,101760.0,101750.0,1.10515468]
[1734251772660,8.61e-05,101760.0,101750.0,1.10518456]
[1734251778759,8.61e-05,101760.0,101750.0,0.97730572]
[1734251779354,8.61e-05,101760.0,101750.0,1.24142398]
[1734251779556,8.61e-05,101760.0,101750.0,0.97730572]
[1734251785331,8.61e-05,101760.0,101750.0,0.84571082]
[1734251785551,8.61e-05,101760.0,101750.0,0.97730572]
[1734251788350,8.61e-05,101760.0,101750.0,1.24142398]
[1734251788557,8.61e-05,101760.0,101750.0,1.35534434]
[1734251789252,8.61e-05,101760.0,101750.0,1.24142398]
[1734251789636,8.61e-05,101760.0,101750.0,1.24150729]
[1734251793306,8.61e-05,101760.0,101750.0,1.23887629]
[1734251793958,8.61e-05,101760.0,101750.0,1.23897097]
[1734251794384,8.61e-05,101760.0,101750.0,1.01879152]
[1734251796118,8.61e-05,101760.0,101750.0,6.04679152]
[1734251796330,8.61e-05,101760.0,101750.0,6.42129343]
[1734251802362,8.61e-05,101760.0,101750.0,6.41941227]
[1734251805382,8.61e-05,101760.0,101750.0,6.28781737]
[1734251805601,8.61e-05,101760.0,101750.0,6.41941227]
[1734251807240,8.61e-05,101760.0,101750.0,6.28781737]
[1734251807457,8.61e-05,101760.0,101750.0,5.07041227]
[1734251808454,8.61e-05,101760.0,101750.0,5.01446013]
[1734251809138,8.61e-05,101760.0,101750.0,4.94866268]
[1734251809341,8.61e-05,101760.0,101750.0,5.08025758]
[1734251812691,8.61e-05,101760.0,101750.0,6.45125758]
[1734251815476,8.61e-05,101760.0,101750.0,6.4495756]
[1734251818806,8.61e-05,101760.0,101750.0,6.44988283]
[1734251821324,8.61e-05,101760.0,101750.0,6.8402391]
[1734251821557,8.61e-05,101760.0,101750.0,6.59428562]
[1734251821692,8.61e-05,101760.0,101750.0,6.84015271]
[1734251823081,8.61e-05,101760.0,101750.0,6.59220304]
[1734251823474,8.61e-05,101760.0,101750.0,6.83802109]
[1734251826770,8.61e-05,101760.0,101750.0,6.90381854]
[1734251826979,8.61e-05,101760.0,101750.0,6.83802109]
[1734251827385,8.61e-05,101760.0,101750.0,6.83815597]
[1734251828011,8.61e-05,101760.0,101750.0,6.95395342]
[1734251828187,8.61e-05,101760.0,101750.0,6.70809887]
[1734251828428,8.61e-05,101760.0,101750.0,1.65809887]
[1734251828639,8.61e-05,101760.0,101750.0,6.32042803]
[1734251828850,8.61e-05,101760.0,101750.0,6.70809887]
[1734251834649,8.61e-05,101760.0,101750.0,6.97225139]
[1734251836527,8.61e-05,101760.0,101750.0,6.90645394]
[1734251837586,8.61e-05,101760.0,101750.0,6.51624484]
[1734251837787,8.61e-05,101760.0,101750.0,6.51624486]
[1734251837998,8.61e-05,101760.0,101750.0,5.2238308]
[1734251838218,8.61e-05,101760.0,101750.0,4.8348308]
[1734251838416,8.61e-05,101760.0,101750.0,4.7958308]
[1734251838639,8.61e-05,101760.0,101750.0,3.9198308]
[1734251838872,8.61e-05,101760.0,101750.0,3.7138308]
[1734251839082,8.61e-05,101760.0,101750.0,1.28329897]
[1734251839083,0.0758,101760.0,101750.0,1.28329897]
[1734251839295,0.0758,101760.0,101750.0,1.01914645]
[1734251839546,0.0758,101760.0,101750.0,1.0849439]
[1734251839751,0.0758,101760.0,101750.0,1.21703992]
[1734251840391,0.0758,101760.0,101750.0,1.2170438]
[1734251841251,0.0758,101760.0,101750.0,1.37392301]
[1734251841461,0.0758,101760.0,101750.0,1.37402311]
[1734251842312,0.0758,101760.0,101750.0,0.97778137]
[1734251842729,0.0758,101760.0,101750.0,0.91198392]
[1734251843454,0.0758,101760.0,101750.0,0.91188382]
[1734251843900,0.0758,101760.0,101750.0,0.83130971]
[1734251844276,0.0758,101760.0,101750.0,0.88130971]
[1734251845079,0.0758861,101760.0,101750.0,0.88130971]
[1734251846496,0.0758861,101760.0,101750.0,0.91188917]
[1734251846722,0.0758861,101760.0,101750.0,0.94710716]
[1734251847505,0.0758861,101760.0,101750.0,0.97768604]
[1734251848787,0.0758861,101760.0,101750.0,1.01381827]
[1734251849221,0.0758861,101760.0,101750.0,1.66813045]
[1734251853125,8.61e-05,101760.0,101750.0,1.40394649]
[1734251853332,8.61e-05,101760.0,101750.0,1.66815483]
[1734251856954,1e-07,101760.0,101750.0,1.66815483]
[1734251857172,1e-07,101760.0,101750.0,1.48224649]
[1734251858716,1e-07,101760.0,101750.0,1.59804394]
[1734251858934,1e-07,101760.0,101750.0,1.70856397]
[1734251859410,0.1281,101780.0,101770.0,0.15]
[1734251859618,0.1281,101780.0,101770.0,0.87186637]
[1734251859824,0.1281,101780.0,101770.0,1.20084307]
[1734251860060,0.1281,101780.0,101770.0,1.42094532]
[1734251860264,0.1281,101780.0,101770.0,1.15682776]
[1734251860470,0.1281,101780.0,101770.0,1.42094532]
[1734251860679,0.12826455,101780.0,101770.0,1.42094532]
[1734251861492,0.12826455,101780.0,101770.0,1.42082961]
[1734251864408,0.12826455,101780.0,101770.0,1.35503216]
[1734251867131,0.12826455,101780.0,101770.0,1.37483578]
[1734251867311,0.12826455,101780.0,101770.0,1.44063323]
[1734251870030,0.12826455,101780.0,101770.0,1.44058528]
[1734251870211,0.08096455,101780.0,101770.0,1.44058528]
[1734251874587,0.08096455,101780.0,101770.0,1.44077367]
[1734251879043,0.08096455,101780.0,101770.0,1.44083512]
[1734251879190,0.08096455,101780.0,101770.0,1.45066718]
[1734251879609,0.08105065,101780.0,101770.0,1.45066718]
[1734251881960,0.00025065,101780.0,101770.0,1.45066718]
[1734251889008,0.07855065,101780.0,101770.0,1.30924022]
[1734251889230,0.07855065,101780.0,101770.0,1.44083512]
[1734251892311,0.07855065,101780.0,101770.0,1.22068217]
[1734251900317,0.07855065,101780.0,101770.0,1.08908727]
[1734251900538,0.07855065,101780.0,101770.0,1.22068217]
[1734251902602,0.07855065,101780.0,101770.0,1.67681024]
[1734251902805,0.07855065,101780.0,101770.0,1.22126368]
[1734251904338,0.07855065,101780.0,101770.0,1.15546623]
[1734251904544,0.07855065,101780.0,101770.0,0.99061475]
[1734251904760,0.12785065,101780.0,101770.0,1.27683971]
[1734251905150,0.12785065,101780.0,101770.0,1.06104226]
[1734251905503,0.12785065,101780.0,101770.0,1.00817725]
[1734251906504,0.12785065,101780.0,101770.0,1.15817725]
[1734251906680,0.12785065,101780.0,101770.0,1.29039021]
[1734251909183,0.13986161,101780.0,101770.0,1.29039021]
[1734251911578,0.13986161,101780.0,101770.0,1.37850916]
[1734251915290,0.13986161,101780.0,101770.0,1.37797477]
[1734251919538,0.13986161,101780.0,101770.0,1.55416743]
[1734251919743,0.13986161,101780.0,101770.0,1.3779556]
[1734251925330,0.13986161,101780.0,101770.0,1.1576953]
[1734251927512,0.13986161,101780.0,101770.0,1.3779556]
[1734251927719,0.13986161,101780.0,101770.0,1.1576953]
[1734251928129,0.13986161,101780.0,101770.0,1.15770344]
[1734251928541,0.13986161,101780.0,101770.0,1.37796622]
[1734251932067,0.13986161,101780.0,101770.0,1.15770344]
[1734251932450,0.13986161,101780.0,101770.0,1.15745509]
[1734251932621,0.13986161,101780.0,101770.0,1.37764208]
[1734251936789,0.13986161,101780.0,101770.0,1.37787939]
[1734251938707,0.09056161,101780.0,101770.0,1.37787939]
[1734251939099,0.09056161,101780.0,101770.0,1.37808561]
[1734251940819,0.09056161,101780.0,101770.0,1.3781627]
[1734251942435,0.01226161,101780.0,101770.0,1.3781627]
[1734251942641,0.01226161,101780.0,101770.0,1.52116015]
[1734251942816,0.01226161,101780.0,101770.0,1.3978726]
[1734251944994,0.00025065,101780.0,101770.0,1.3978726]
[1734251945615,0.00025065,101780.0,101770.0,1.46367005]
[1734251945865,0.00025065,101780.0,101770.0,1.56586234]
[1734251946319,0.00025065,101780.0,101770.0,1.34555361]
[1734251948693,0.00025065,101780.0,101770.0,1.34536696]
[1734251949783,0.04257994,101800.0,101790.0,0.26227945]
[1734251949996,0.04257994,101800.0,101790.0,0.35035059]
[1734251950215,0.04312831,101800.0,101790.0,0.35422056]
[1734251951886,0.0551935,101800.0,101790.0,0.35422056]
[1734251952835,0.01261356,101800.0,101790.0,0.35422056]
[1734251953482,0.01261356,101800.0,101790.0,0.26614942]
[1734251959569,0.01261356,101800.0,101790.0,0.77229835]
[1734251959800,0.00063447,101800.0,101790.0,1.5236314]
[1734251959945,0.00063447,101800.0,101790.0,1.35408273]
[1734251960146,0.00063447,101800.0,101790.0,1.32582464]
[1734251960516,0.00063447,101800.0,101790.0,1.37582464]
[1734251961711,0.00063447,101800.0,101790.0,1.37496897]
[1734251963670,0.00063447,101800.0,101790.0,1.39448991]
[1734251963877,8.61e-05,101810.0,101800.0,0.2755]
[1734251964100,8.61e-05,101810.0,101800.0,1.18063181]
[1734251964303,8.61e-05,101810.0,101800.0,1.44805676]
[1734251964513,8.61e-05,101810.0,101800.0,1.31605978]
[1734251965328,8.61e-05,101810.0,101800.0,1.49150436]
[1734251965541,8.61e-05,101810.0,101800.0,6.06650436]
[1734251965753,8.61e-05,101810.0,101800.0,1.36605978]
[1734251966169,8.61e-05,101810.0,101800.0,6.41605978]
[1734251966377,8.61e-05,101810.0,101800.0,6.59143658]
[1734251966982,8.61e-05,101810.0,101800.0,4.54243658]
[1734251967405,8.61e-05,101810.0,101800.0,4.38743658]
[1734251967590,8.61e-05,101810.0,101800.0,4.33643658]
[1734251968348,8.61e-05,101810.0,101800.0,4.46789967]
[1734251969192,1e-07,101810.0,101800.0,4.46789967]
[1734251969515,2e-07,101830.0,101820.0,0.33]
[1734251969719,2e-07,101830.0,101820.0,0.71405174]
[1734251969925,2e-07,101830.0,101820.0,0.64315103]
[1734251969926,0.00016464,101830.0,101820.0,0.64315103]
[1734251970138,0.00016464,101830.0,101820.0,0.92718139]
[1734251970349,0.00016464,101830.0,101820.0,1.38192132]
[1734251970546,0.00016464,101830.0,101820.0,0.92718139]
[1734251970750,0.00016464,101830.0,101820.0,1.55695082]
[1734251970959,0.00016464,101830.0,101820.0,1.68882122]
[1734251971370,0.00016464,101830.0,101820.0,1.79955523]
[1734251971987,0.00016464,101830.0,101820.0,1.77631078]
[1734251972155,0.00016464,101830.0,101820.0,1.80130523]
[1734251972442,0.00016464,101830.0,101820.0,6.63182947]
[1734251973132,0.00016464,101830.0,101820.0,6.6512346]
[1734251973553,0.00016464,101830.0,101820.0,6.47602387]
[1734251974529,0.00016464,101830.0,101820.0,6.47508095]
[1734251975481,0.00016464,101830.0,101820.0,6.15246609]
[1734251975834,0.00016464,101830.0,101820.0,6.0213718]
[1734251976042,0.00016464,101830.0,101820.0,6.03298784]
[1734251976278,6.4e-07,101830.0,101820.0,6.08298784]
[1734251976416,6.4e-07,101830.0,101820.0,1.66131283]
[1734251976618,6.4e-07,101830.0,101820.0,1.64842641]
[1734251977231,6.4e-07,101830.0,101820.0,1.39863957]
[1734251977646,6.4e-07,101830.0,101820.0,0.94510697]
[1734251978772,6.4e-07,101830.0,101820.0,0.94501692]
[1734251979098,6.4e-07,101830.0,101820.0,0.87921947]
[1734251979302,6.4e-07,101830.0,101820.0,0.94501692]
[1734251979746,6.4e-07,101830.0,101820.0,0.89501692]
[1734251980182,6.4e-07,101830.0,101820.0,0.82921947]
[1734251980511,6.4e-07,101830.0,101820.0,0.87921947]
[1734251980714,6.4e-07,101830.0,101820.0,0.82921947]
[1734251980915,6.4e-07,101830.0,101820.0,0.59870239]
[1734251981127,6.4e-07,101830.0,101820.0,0.73029729]
[1734251981280,6.4e-07,101830.0,101820.0,0.78029729]
[1734251982465,6.4e-07,101830.0,101820.0,0.60029729]
[1734251983383,6.4e-07,101830.0,101820.0,0.65029729]
[1734251983564,6.4e-07,101830.0,101820.0,0.65046949]
[1734251984396,8.674e-05,101830.0,101820.0,0.36982056]
[1734251984599,8.674e-05,101830.0,101820.0,0.50141546]
[1734251989430,8.674e-05,101830.0,101820.0,0.48201033]
[1734251996482,8.674e-05,101830.0,101820.0,0.56321033]
[1734251998929,8.674e-05,101830.0,101820.0,0.66226436]
[1734251999373,8.674e-05,101830.0,101820.0,0.74978748]
[1734252000005,8.674e-05,101830.0,101820.0,0.81558493]
[1734252000617,8.674e-05,101830.0,101820.0,0.74978748]
[1734252001030,8.674e-05,101830.0,101820.0,0.81558493]
[1734252001224,8.674e-05,101830.0,101820.0,1.47561486]
[1734252001631,8.674e-05,101830.0,101820.0,1.69442266]
[1734252002048,8.674e-05,101830.0,101820.0,1.73942266]
[1734252002477,8.674e-05,101830.0,101820.0,1.65189954]
[1734252003159,8.674e-05,101830.0,101820.0,1.70189954]
[1734252003302,8.674e-05,101830.0,101820.0,1.57061486]
[1734252003516,8.674e-05,101830.0,101820.0,2.11107353]
[1734252003941,8.674e-05,101830.0,101820.0,1.65813799]
[1734252004347,8.674e-05,101830.0,101820.0,1.91226573]
[1734252004547,8.674e-05,101830.0,101820.0,1.45933019]
[1734252004724,8.674e-05,101830.0,101820.0,6.50933019]
[1734252004926,8.674e-05,101830.0,101820.0,6.96226573]
[1734252005325,8.674e-05,101830.0,101820.0,6.97397455]
[1734252006948,7.4e-07,101830.0,101820.0,7.02397455]
[1734252007141,7.4e-07,101830.0,101820.0,1.97397455]
[1734252007599,7.4e-07,101830.0,101820.0,1.52103901]
[1734252008003,7.4e-07,101830.0,101820.0,1.47103901]
[1734252008156,7.4e-07,101830.0,101820.0,1.52103901]
[1734252008360,7.4e-07,101830.0,101820.0,1.85873909]
[1734252008702,7.4e-07,101830.0,101820.0,1.90873909]
[1734252010319,7.4e-07,101830.0,101820.0,2.09910526]
[1734252010555,7.4e-07,101830.0,101820.0,1.64616972]
[1734252012956,7.4e-07,101830.0,101820.0,1.67116417]
[1734252013174,8.61e-05,101840.0,101830.0,0.34559745]
[1734252013408,8.61e-05,101840.0,101830.0,6.5652656]
[1734252013616,8.61e-05,101840.0,101830.0,7.02200761]
[1734252014057,8.61e-05,101840.0,101830.0,5.51021016]
[1734252014615,8.61e-05,101840.0,101830.0,5.05321016]
[1734252019205,8.61e-05,101840.0,101830.0,5.05338236]
[1734252020034,8.61e-05,101840.0,101830.0,5.05436054]
[1734252020415,8.61e-05,101840.0,101830.0,5.07385977]
[1734252024496,8.61e-05,101840.0,101830.0,5.07333886]
[1734252026610,8.61e-05,101840.0,101830.0,5.33640059]
[1734252027856,8.61e-05,101840.0,101830.0,4.92880569]
[1734252028062,8.61e-05,101840.0,101830.0,3.46180569]
[1734252028280,8.61e-05,101840.0,101830.0,3.59340059]
[1734252029278,8.61e-05,101840.0,101830.0,2.18940059]
[1734252029542,8.61e-05,101840.0,101830.0,3.45214435]
[1734252029747,8.61e-05,101840.0,101830.0,3.90540059]
[1734252031709,8.61e-05,101840.0,101830.0,4.01807401]
[1734252031981,8.61e-05,101840.0,101830.0,3.95227656]
[1734252032156,8.61e-05,101840.0,101830.0,4.01807401]
[1734252032326,8.61e-05,101840.0,101830.0,3.95227656]
[1734252033078,8.61e-05,101840.0,101830.0,3.95169466]
[1734252033586,8.61e-05,101840.0,101830.0,4.01749211]
[1734252033971,8.61e-05,101840.0,101830.0,3.95169466]
[1734252035832,8.61e-05,101840.0,101830.0,3.07769466]
[1734252038274,8.61e-05,101840.0,101830.0,2.81469686]
[1734252038479,8.61e-05,101840.0,101830.0,2.88049431]
[1734252039190,8.61e-05,101840.0,101830.0,2.81469686]
[1734252040641,8.61e-05,101840.0,101830.0,2.88049431]
[1734252041198,8.61e-05,101840.0,101830.0,2.81469686]
[1734252042034,8.61e-05,101840.0,101830.0,2.88049431]
[1734252045527,8.61e-05,101840.0,101830.0,2.68310196]
[1734252045744,8.61e-05,101840.0,101830.0,2.88049431]
[1734252045953,8.61e-05,101840.0,101830.0,1.92699686]
[1734252046164,8.61e-05,101840.0,101830.0,1.84719686]
[1734252046372,8.61e-05,101840.0,101830.0,1.39414206]
[1734252047012,8.61e-05,101840.0,101830.0,1.21254716]
[1734252047228,0.1280861,101840.0,101830.0,1.15334823]
[1734252047440,0.1280861,101840.0,101830.0,1.21914568]
[1734252050408,0.1280861,101840.0,101830.0,1.21978577]
[1734252051639,0.1280861,101840.0,101830.0,1.26978577]
[1734252052386,0.1280861,101840.0,101830.0,1.13819087]
[1734252052634,0.1280861,101840.0,101830.0,1.26978577]
[1734252052875,0.1280861,101840.0,101830.0,1.21978577]
[1734252053138,0.1280861,101840.0,101830.0,1.08819087]
[1734252053380,0.1280861,101840.0,101830.0,1.21978577]
[1734252054859,8.61e-05,101840.0,101830.0,1.26978577]
[1734252056500,8.61e-05,101840.0,101830.0,1.21978577]
[1734252056882,8.61e-05,101840.0,101830.0,1.26978577]
[1734252059035,8.61e-05,101840.0,101830.0,1.3954997]
[1734252059442,8.61e-05,101840.0,101830.0,1.39544813]
[1734252059876,8.61e-05,101840.0,101830.0,1.47744813]
[1734252062117,8.61e-05,101840.0,101830.0,1.47749657]
[1734252070671,8.61e-05,101840.0,101830.0,1.47753846]
[1734252073824,8.61e-05,101840.0,101830.0,1.34594356]
[1734252074036,8.61e-05,101840.0,101830.0,1.26394356]
[1734252074223,8.61e-05,101840.0,101830.0,1.39553846]
[1734252075179,8.61e-05,101840.0,101830.0,1.39571171]
[1734252083141,8.61e-05,101840.0,101830.0,1.54470916]
[1734252083373,8.61e-05,101840.0,101830.0,1.47891171]
[1734252084048,8.61e-05,101840.0,101830.0,1.47908014]
[1734252086206,8.61e-05,101840.0,101830.0,1.54487759]
[1734252086480,8.61e-05,101840.0,101830.0,1.15559686]
[1734252086906,8.61e-05,101840.0,101830.0,1.54486247]
[1734252087100,8.61e-05,101840.0,101830.0,1.47906502]
[1734252088473,8.61e-05,101840.0,101830.0,1.54396027]
[1734252088673,8.61e-05,101840.0,101830.0,1.47915738]
[1734252089473,8.61e-05,101840.0,101830.0,1.54396027]
[1734252089681,8.61e-05,101840.0,101830.0,1.08979941]
[1734252091824,8.61e-05,101840.0,101830.0,1.15559686]
[1734252092073,8.61e-05,101840.0,101830.0,1.1557547]
[1734252092721,8.61e-05,101840.0,101830.0,1.15575571]
[1734252097096,8.61e-05,101840.0,101830.0,1.15574729]
[1734252106078,8.61e-05,101840.0,101830.0,1.15580166]
[1734252108585,8.61e-05,101840.0,101830.0,1.09000421]
[1734252114567,8.61e-05,101840.0,101830.0,1.09002381]
[1734252114971,8.61e-05,101840.0,101830.0,1.15582126]
[1734252116704,8.61e-05,101840.0,101830.0,1.09002381]
[1734252117363,0.0762861,101840.0,101830.0,1.00682381]
[1734252117952,8.61e-05,101840.0,101830.0,1.00682381]
[1734252119573,8.61e-05,101840.0,101830.0,1.00686121]
[1734252125684,8.61e-05,101840.0,101830.0,1.07265866]